Cogmind - Beta 14 @@@ ROGUE MODE // 2024.10.06 @ 02:20:12 // AFD2019/Pay2Buy Player: Necroptosis Result: Destroyed by G-67 Veteran with Plasma Rifle Performance ------------- Evolutions (7) 3500 Regions Visited (13) 2600 Robots Destroyed (23) 115 Value Destroyed (747) 747 Prototype IDs (28) 560 Alien Tech Used (0) 0 Bonus (2340) 2340 TOTAL SCORE: 9862 Bonus ------- Triggered Max Security 1000 Follower Combat Kills 40 Entered DSFs 1000 Aligned with FarCom 300 Cogmind --------- Core Integrity 0/1300 Matter 290/300 Energy 67/100 System Corruption 0% Temperature Cool (24) Movement Core (50) Location -3/Testing Parts ------- > --- POWER (1) -------- (None) > --- PROPULSION (2) --- (None) > --- UTILITY (16) ----- Graphene Brace > --- WEAPON (2) ------- (None) > --- INVENTORY (10) --- Medium Matter Pod (100) Advanced Matter Compressor (4) Particle Accelerator Light EM Pulse Cannon Improved EM Pulse Cannon Improved Assault Rifle Peak State ------------ > --- POWER ------------ Light Nuclear Core > --- PROPULSION ------- Compact Wheel > --- UTILITY ---------- Heat Sink Heat Sink Improved Salvage Targeting Computer Hardened Light Armor Plating > --- WEAPON ----------- Cooled Pulse Rifle Plasma Cannon > --- INVENTORY -------- Improved Ion Engine Improved Cesium-ion Thruster Medium Matter Pod Improved EM Pulse Cannon Beam Cannon Improved Assault Rifle Welding Torch [Rating: 22] Favorites ----------- Power Light Nuclear Core Engine Improved Ion Engine Power Core Light Nuclear Core Propulsion Compact Wheel Wheel Compact Wheel Hover Unit Improved Hover Unit Flight Unit Improved Cesium-ion Thruster Utility Heat Sink Device Heat Sink Processor Improved Salvage Targeting Computer Protection Hardened Light Armor Plating Weapon Light EM Pulse Cannon Energy Gun Cooled Pulse Rifle Energy Cannon Light EM Pulse Cannon Ballistic Gun Improved Assault Rifle Special Weapon Welding Torch Build | -11 -10 -10 -10 -9 -8 -7 -7 -6 -5 -4 -4 -3 -3 ------- Run | Yrd Mat Min Exi Min Mat Fac DSF Fac Fac Fac DSF Res Tes Slots Evolved 14 | . . . . . 4 2 . 2 2 2 . 2 . Power . | . . . . . . . . . . . . . . Propulsion . | . . . . . . . . . . . . . . Utility 14 | . . . . . 4 2 . 2 2 2 . 2 . Weapon . | . . . . . . . . . . . . . . Parts Attached 12 | . 2 . . . 4 . . 5 . . . . 1 Power 1 | . . . . . 1 . . . . . . . . Engine 1 | . . . . . 1 . . . . . . . . Core . | . . . . . . . . . . . . . . Reactor . | . . . . . . . . . . . . . . Propulsion 3 | . . . . . . . . 3 . . . . . Treads . | . . . . . . . . . . . . . . Leg . | . . . . . . . . . . . . . . Wheel . | . . . . . . . . . . . . . . Hover . | . . . . . . . . . . . . . . Flight 3 | . . . . . . . . 3 . . . . . Utility 2 | . . . . . 2 . . . . . . . . Device 1 | . . . . . 1 . . . . . . . . Storage . | . . . . . . . . . . . . . . Processor 1 | . . . . . 1 . . . . . . . . Hackware . | . . . . . . . . . . . . . . Protection . | . . . . . . . . . . . . . . Artifact . | . . . . . . . . . . . . . . Weapon 6 | . 2 . . . 1 . . 2 . . . . 1 Energy Gun 1 | . . . . . 1 . . . . . . . . Energy Cannon 4 | . 2 . . . . . . 2 . . . . . Ballistic Gun . | . . . . . . . . . . . . . . Ballistic Cannon . | . . . . . . . . . . . . . . Launcher . | . . . . . . . . . . . . . . Special Weapon 1 | . . . . . . . . . . . . . 1 Impact Weapon . | . . . . . . . . . . . . . . Slashing Weapon . | . . . . . . . . . . . . . . Piercing Weapon . | . . . . . . . . . . . . . . Special Melee Weapon . | . . . . . . . . . . . . . . Unidentified Prototypes . | . . . . . . . . . . . . . . Parts Lost 11 | . . . . . 1 . 5 4 1 . . . . Power 1 | . . . . . . . 1 . . . . . . Propulsion 3 | . . . . . 1 . 1 . 1 . . . . Utility 4 | . . . . . . . 1 3 . . . . . Weapon 3 | . . . . . . . 2 1 . . . . . Highest Loss Streak 4 | . . . . . 1 . 4 3 1 . . . . To Critical Strikes . | . . . . . . . . . . . . . . Average Slot Usage (%) 69 | . 100 100 100 100 79 61 45 15 9 5 5 4 4 Core 8 | . 14 14 14 14 7 . . . . . . . . Wheel 9 | . 14 14 14 14 9 7 4 . . . . . . Hover 8 | . 14 14 14 14 7 . . . . . . . . Device 11 | . 14 14 14 14 18 15 15 5 5 5 5 4 4 Processor 1 | . . . . . 9 7 7 . . . . . . Protection 9 | . 14 14 14 14 9 7 4 . . . . . . Energy Cannon 14 | . 19 28 28 28 16 7 5 2 . . . . . Ballistic Gun 2 | . 6 . . . . . . . . . . . . Special Weapon 1 | . 2 . . . . . . . . . . . . Peak Build Rating 22 | 13 16 16 17 17 22 21 21 15 16 9 9 9 10 Average Rating 14 | 12 14 16 16 17 20 21 15 7 11 9 9 9 9 On Entrance 12 | . 13 16 16 17 17 21 21 7 6 9 9 9 9 Naked Turns 3 | . . . . . . . . 3 . . . . . Heaviest Build 25 | 15 22 22 22 22 25 25 25 5 1 1 1 1 1 Greatest Support 16 | 16 16 16 16 16 16 16 16 6 6 3 3 3 3 Greatest Overweight (x) 4 | . 1 1 1 1 1 1 4 1 . . . . . Average Overweight (x) . | . . 1 1 1 1 1 . . . . . . . Largest Inventory Capacity 10 | 10 10 10 10 10 10 10 10 10 10 10 10 10 10 Average Capacity 10 | 10 10 10 10 10 10 10 10 10 10 10 10 10 10 Most Carried 8 | 1 6 6 8 8 8 7 7 7 7 7 7 7 7 Average Carried 5 | 1 4 6 6 8 6 7 7 5 5 7 7 7 6 Final Capacity 10 | 10 10 10 10 10 10 10 10 10 10 10 10 10 10 Final Carried 8 | 1 6 6 8 8 7 7 7 5 7 7 7 7 6 Class Distribution -------------------- 100% | Mutant Dominant Class ---------------- Mutant | -10/Materials Mutant | -10/Mines Mutant | -10/Exiles Mutant | -9/Mines Mutant | -8/Materials Mutant | -7/Factory Mutant | -7/DSF Mutant | -6/Factory Mutant | -5/Factory Mutant | -4/Factory Mutant | -4/DSF Mutant | -3/Research Mutant | -3/Testing Resources | -11 -10 -10 -10 -9 -8 -7 -7 -6 -5 -4 -4 -3 -3 ----------- Run | Yrd Mat Min Exi Min Mat Fac DSF Fac Fac Fac DSF Res Tes Matter Collected 447 | 99 307 . . . 20 . 20 . . . 1 . . Remotely . | . . . . . . . . . . . . . . Salvage Created 964 | 99 560 83 . . 157 . 65 . . . . . . Parts . | . . . . . . . . . . . . . . Haulers Intercepted 1 | . 1 . . . . . . . . . . . . Recyclers Shooed . | . . . . . . . . . . . . . . Parts Field Recycled . | . . . . . . . . . . . . . . Retrieved Matter . | . . . . . . . . . . . . . . Parts Self-Destructed . | . . . . . . . . . . . . . . Prevented . | . . . . . . . . . . . . . . Kills | -11 -10 -10 -10 -9 -8 -7 -7 -6 -5 -4 -4 -3 -3 ------- Run | Yrd Mat Min Exi Min Mat Fac DSF Fac Fac Fac DSF Res Tes Combat Hostiles Destroyed 13 | . 8 2 . . 2 . 1 . . . . . . Guns 2 | . 2 . . . . . . . . . . . . Cannons 11 | . 6 2 . . 2 . 1 . . . . . . Classes Destroyed 8 | 2 4 . . . 1 . 1 . . . . . . Tunneler 2 | 1 1 . . . . . . . . . . . . Hauler 1 | . 1 . . . . . . . . . . . . Recycler 1 | 1 . . . . . . . . . . . . . Operator 2 | . 2 . . . . . . . . . . . . Watcher 4 | . 2 . . . 2 . . . . . . . . Grunt 11 | . 8 2 . . 1 . . . . . . . . Sentry 1 | . . . . . 1 . . . . . . . . Specialist 1 | . . . . . . . 1 . . . . . . Best Kill Streak 3 | 2 3 2 . . 1 . 1 . . . . . . Combat Bots Only 2 | . 2 2 . . 1 . 1 . . . . . . Max Kills in Single Turn 1 | 1 1 1 . . 1 . 1 . . . . . . Gunslinging . | . . . . . . . . . . . . . . Exploded . | . . . . . . . . . . . . . . Melee . | . . . . . . . . . . . . . . Uniques/NPCs Destroyed . | . . . . . . . . . . . . . . Combat | -11 -10 -10 -10 -9 -8 -7 -7 -6 -5 -4 -4 -3 -3 -------- Run | Yrd Mat Min Exi Min Mat Fac DSF Fac Fac Fac DSF Res Tes Hostile Shots Fired 297 | . 23 2 . . 7 . 15 43 66 . 7 93 41 Missed 128 | . 7 1 . . 1 . 4 20 28 . 3 46 18 Damage Taken 3735 | 2 198 10 . . 216 . 491 548 660 . 234 925 451 Core 2657 | 2 21 . . . 35 . 147 355 548 . 234 886 429 Absorbed by Shields 18 | . . . . . . . . 18 . . . . . Core Remaining (%) 77 | 99 . . . 90 93 . 79 58 45 . 79 . . Volleys Fired 56 | 7 34 2 . . 8 . 1 3 . . . . 1 Largest 2 | 2 2 2 . . 2 . 2 1 . . . . 1 Hottest 136 | 43 136 136 . . 136 . 100 60 . . . . 20 Shots Fired 98 | 9 63 4 . . 16 . 2 3 . . . . 1 Gun 31 | 7 23 . . . . . 1 . . . . . . Cannon 60 | . 36 4 . . 16 . 1 3 . . . . . Launcher . | . . . . . . . . . . . . . . Special 7 | 2 4 . . . . . . . . . . . 1 Kinetic 30 | 7 23 . . . . . . . . . . . . Thermal 32 | 2 14 2 . . 8 . 2 3 . . . . 1 Explosive . | . . . . . . . . . . . . . . Electromagnetic 36 | . 26 2 . . 8 . . . . . . . . Robot Hit Streak 11 | 4 11 7 . . 10 . 6 . . . . . . Robot Miss Streak 3 | 1 3 . . . 1 . . . . . . . . Penetration Max . | . . . . . . . . . . . . . . Secondary Targets . | . . . . . . . . . . . . . . Shots Hit Robots 66 | 7 42 4 . . 11 . 2 . . . . . . Core Hits 29 | 2 16 3 . . 6 . 2 . . . . . . Critical Kills . | . . . . . . . . . . . . . . Critical Parts Destroyed . | . . . . . . . . . . . . . . Critical Strikes . | . . . . . . . . . . . . . . Melee Attacks . | . . . . . . . . . . . . . . Impact . | . . . . . . . . . . . . . . Slashing . | . . . . . . . . . . . . . . Piercing . | . . . . . . . . . . . . . . Sneak Attacks . | . . . . . . . . . . . . . . Combat Hostiles . | . . . . . . . . . . . . . . Follow-up Attacks . | . . . . . . . . . . . . . . Damage Inflicted 1508 | 112 885 97 . . 330 . 47 . . . . 37 . Guns 310 | 107 183 . . . . . 20 . . . . . . Cannons 1094 | . 696 97 . . 274 . 27 . . . . . . Explosions 56 | . . . . . 56 . . . . . . . . Melee . | . . . . . . . . . . . . . . Ramming 42 | 5 . . . . . . . . . . . 37 . Kinetic 290 | 107 183 . . . . . . . . . . . . Thermal 388 | . 160 51 . . 130 . 47 . . . . . . Explosive . | . . . . . . . . . . . . . . Electromagnetic 788 | . 542 46 . . 200 . . . . . . . . Impact . | . . . . . . . . . . . . . . Slashing . | . . . . . . . . . . . . . . Piercing . | . . . . . . . . . . . . . . Highest Corruption . | . . . . . . . . . . . . . . Average Corruption . | . . . . . . . . . . . . . . Corruption Purged . | . . . . . . . . . . . . . . Corruption Blocked . | . . . . . . . . . . . . . . Overload Shots . | . . . . . . . . . . . . . . Overflow Damage 176 | . 17 . . . 90 . . 69 . . . . . Projectiles 17 | . 17 . . . . . . . . . . . . Explosions 159 | . . . . . 90 . . 69 . . . . . Melee . | . . . . . . . . . . . . . . Knockbacks . | . . . . . . . . . . . . . . Impact . | . . . . . . . . . . . . . . Kinetic . | . . . . . . . . . . . . . . Secondary . | . . . . . . . . . . . . . . Self-Inflicted Damage 322 | 2 . . . . 130 . . 173 . . . 17 . Shots 5 | . . . . . 2 . . 3 . . . . . Rammed 8 | 1 . . . . . . . . . . . 7 . Targets Rammed 8 | 1 . . . . . . . . . . . 7 . Kicked . | . . . . . . . . . . . . . . Crushed . | . . . . . . . . . . . . . . Highest Temperature 405 | . 405 138 . . 126 . . . . . . . . Average Temperature 81 | . 90 75 . . 46 . . . . . . . . Received Heat Transfer 453 | . 132 6 . . 63 . . 63 18 . . 72 99 Siege Activations . | . . . . . . . . . . . . . . Robots Corrupted . | . . . . . . . . . . . . . . Combat Hostiles . | . . . . . . . . . . . . . . Parts Fried . | . . . . . . . . . . . . . . Impact Corruptions . | . . . . . . . . . . . . . . Robots Melted . | . . . . . . . . . . . . . . Combat Hostiles . | . . . . . . . . . . . . . . Parts Melted . | . . . . . . . . . . . . . . Heat Transferred 737 | . 350 100 . . 200 . 87 . . . . . . Parts Sabotaged . | . . . . . . . . . . . . . . Parts Stolen . | . . . . . . . . . . . . . . Parts Stripped . | . . . . . . . . . . . . . . Power Chain Reactions 1 | . . . . . 1 . . . . . . . . Alert | -11 -10 -10 -10 -9 -8 -7 -7 -6 -5 -4 -4 -3 -3 ------- Run | Yrd Mat Min Exi Min Mat Fac DSF Fac Fac Fac DSF Res Tes Peak Influence 1600 | 10 259 50 . . 187 84 87 119 296 144 119 246 1600 Initial 144 | . 6 . . . . 84 62 32 58 144 104 66 138 Average 112 | 6 82 49 . . 69 84 71 71 164 144 110 162 1561 Maximum Alert Level 5 | . 1 . . . . . . . 1 . . 1 5 Low Security (%) 88 | 100 89 100 . 100 100 100 100 100 62 100 100 69 2 Level 1 9 | . 10 . . . . . . . 37 . . 30 . Level 2 . | . . . . . . . . . . . . . . Level 3 . | . . . . . . . . . . . . . . Level 4 . | . . . . . . . . . . . . . . Level 5 . | . . . . . . . . . . . . . . High Security . | . . . . . . . . . . . . . . Max Security 1 | . . . . . . . . . . . . . 97 Squads Dispatched 9 | . . . . . . . 1 1 3 1 . 3 . Investigation 2 | . . . . . . . . . 1 1 . . . Extermination . | . . . . . . . . . . . . . . Reinforcement 7 | . . . . . . . 1 1 2 . . 3 . Assault . | . . . . . . . . . . . . . . Garrison . | . . . . . . . . . . . . . . Intercept . | . . . . . . . . . . . . . . Searches Triggered . | . . . . . . . . . . . . . . Construction Impeded 1 | . . . . . . . . . . . . 1 . Haulers Reinforced . | . . . . . . . . . . . . . . Active Scanning Responses . | . . . . . . . . . . . . . . Cargo Convoy Interrupts . | . . . . . . . . . . . . . . Stealth | -11 -10 -10 -10 -9 -8 -7 -7 -6 -5 -4 -4 -3 -3 --------- Run | Yrd Mat Min Exi Min Mat Fac DSF Fac Fac Fac DSF Res Tes Distress Signals 3 | . 2 . . . . . . 1 . . . . . Communications Jammed . | . . . . . . . . . . . . . . Distress Signals . | . . . . . . . . . . . . . . Times Spotted 73 | . 14 1 . . 4 . 3 8 23 . 2 13 5 Peak Tracking Total 13 | . 4 1 . . 1 . 1 6 13 . 1 6 5 Tactical Retreats 12 | . 1 . . . . . 2 1 3 . 1 4 . Traps | -11 -10 -10 -10 -9 -8 -7 -7 -6 -5 -4 -4 -3 -3 ------- Run | Yrd Mat Min Exi Min Mat Fac DSF Fac Fac Fac DSF Res Tes Traps Triggered 5 | . . . . . . . 1 2 1 . . 1 . Indirectly . | . . . . . . . . . . . . . . Trap Hack Attempts . | . . . . . . . . . . . . . . Triggered . | . . . . . . . . . . . . . . Disarmed . | . . . . . . . . . . . . . . Reprogrammed . | . . . . . . . . . . . . . . Reused . | . . . . . . . . . . . . . . Traps Extracted . | . . . . . . . . . . . . . . Installed . | . . . . . . . . . . . . . . Triggered . | . . . . . . . . . . . . . . Machines | -11 -10 -10 -10 -9 -8 -7 -7 -6 -5 -4 -4 -3 -3 ---------- Run | Yrd Mat Min Exi Min Mat Fac DSF Fac Fac Fac DSF Res Tes Machines Disabled 6 | . 1 . . . 2 . . 3 . . . . . Max in Single Turn 3 | . 1 . . . 2 . . 3 . . . . . Machines Repaired . | . . . . . . . . . . . . . . Machines Dismantled . | . . . . . . . . . . . . . . Machines Sabotaged . | . . . . . . . . . . . . . . Overloaded Fab Kills . | . . . . . . . . . . . . . . Hacking | -11 -10 -10 -10 -9 -8 -7 -7 -6 -5 -4 -4 -3 -3 --------- Run | Yrd Mat Min Exi Min Mat Fac DSF Fac Fac Fac DSF Res Tes Machines Accessed 16 | . 6 . 1 . 2 1 . 3 1 1 . 1 . Terminals 14 | . 6 . . . 2 1 . 2 1 1 . 1 . Fabricators . | . . . . . . . . . . . . . . Repair Stations . | . . . . . . . . . . . . . . Recycling Units . | . . . . . . . . . . . . . . Scanalyzers . | . . . . . . . . . . . . . . Garrison Access 1 | . . . . . . . . 1 . . . . . Total Hacks 33 | . 14 . 1 . 6 1 . 5 2 3 . 1 . Successful 17 | . 7 . 1 . 5 1 . 1 . 1 . 1 . Failed 16 | . 7 . . . 1 . . 4 2 2 . . . Catastrophic 6 | . 2 . . . 1 . . 1 2 . . . . Database Lockouts . | . . . . . . . . . . . . . . Manual 20 | . 12 . 1 . 7 . . . . . . . . Terminals 30 | . 14 . . . 6 1 . 3 2 3 . 1 . Fabricators . | . . . . . . . . . . . . . . Repair Stations . | . . . . . . . . . . . . . . Recycling Units . | . . . . . . . . . . . . . . Scanalyzers . | . . . . . . . . . . . . . . Garrison Access 2 | . . . . . . . . 2 . . . . . Terminal Hacks 7 | . 1 . 1 . 1 1 . 1 . 1 . 1 . Robot Analysis 2 | . 1 . . . 1 . . . . . . . . Open DSF 4 | . . . . . . 1 . 1 . 1 . 1 . Derelict Proto ID Bank 1 | . . . 1 . . . . . . . . . . Fabricator Hacks . | . . . . . . . . . . . . . . Repair Station Hacks . | . . . . . . . . . . . . . . Recycling Unit Hacks . | . . . . . . . . . . . . . . Scanalyzer . | . . . . . . . . . . . . . . Garrison Access Hacks . | . . . . . . . . . . . . . . Unauthorized Hacks 10 | . 6 . . . 4 . . . . . . . . Terminals 10 | . 6 . . . 4 . . . . . . . . Botnet 3 | . 1 . . . 2 . . . . . . . . Skim 7 | . 5 . . . 2 . . . . . . . . Fabricators . | . . . . . . . . . . . . . . Repair Stations . | . . . . . . . . . . . . . . Recycling Units . | . . . . . . . . . . . . . . Scanalyzers . | . . . . . . . . . . . . . . Garrison Access . | . . . . . . . . . . . . . . Data Cores Recovered 2 | . 2 . . . . . . . . . . . . Used 1 | . 1 . . . . . . . . . . . . Hacking Detections 12 | . 6 . . . 2 . . 2 1 1 . . . Full Trace Events 2 | . . . . . . . . . 1 1 . . . Feedback Events . | . . . . . . . . . . . . . . Feedback Blocked . | . . . . . . . . . . . . . . Robot Schematics Acquired . | . . . . . . . . . . . . . . Robots Built . | . . . . . . . . . . . . . . Authchips . | . . . . . . . . . . . . . . Time . | . . . . . . . . . . . . . . Total Robot Build Rating . | . . . . . . . . . . . . . . Part Schematics Acquired . | . . . . . . . . . . . . . . Parts Built . | . . . . . . . . . . . . . . Authchips . | . . . . . . . . . . . . . . Time . | . . . . . . . . . . . . . . Total Part Build Rating . | . . . . . . . . . . . . . . Parts Repaired . | . . . . . . . . . . . . . . Time . | . . . . . . . . . . . . . . Parts Recycled . | . . . . . . . . . . . . . . Recycled Matter . | . . . . . . . . . . . . . . Retrieved Matter . | . . . . . . . . . . . . . . Retrieved Components . | . . . . . . . . . . . . . . Parts Scanalyzed . | . . . . . . . . . . . . . . Part Schematics Acquired . | . . . . . . . . . . . . . . Parts Damaged . | . . . . . . . . . . . . . . Bothacking | -11 -10 -10 -10 -9 -8 -7 -7 -6 -5 -4 -4 -3 -3 ------------ Run | Yrd Mat Min Exi Min Mat Fac DSF Fac Fac Fac DSF Res Tes Used RIF Installer . | . . . . . . . . . . . . . . Robots Hacked . | . . . . . . . . . . . . . . Non-combat . | . . . . . . . . . . . . . . Combat . | . . . . . . . . . . . . . . Robot Hacks Applied . | . . . . . . . . . . . . . . Relay Couplers Released . | . . . . . . . . . . . . . . Fabnet Peak Effective % . | . . . . . . . . . . . . . . Robots Rewired . | . . . . . . . . . . . . . . Allies Hacked . | . . . . . . . . . . . . . . Hacks Repelled . | . . . . . . . . . . . . . . Allies | -11 -10 -10 -10 -9 -8 -7 -7 -6 -5 -4 -4 -3 -3 -------- Run | Yrd Mat Min Exi Min Mat Fac DSF Fac Fac Fac DSF Res Tes Total Allies 3 | . . . . . . . . . 3 . . . . Largest Group 3 | . . . . . . . . . 3 . . . . Highest-Rated Group 93 | . . . . . . . . . 93 . . . . Highest-Rated Ally 31 | . . . . . . . . . 31 . . . . Total Orders . | . . . . . . . . . . . . . . Ally Attacks 13 | . . . . . . . . . 13 . . . . Total Damage 188 | . . . . . . . . . 188 . . . . Kills 3 | . . . . . . . . . 3 . . . . Allies Corrupted . | . . . . . . . . . . . . . . Allies Melted . | . . . . . . . . . . . . . . Intel | -11 -10 -10 -10 -9 -8 -7 -7 -6 -5 -4 -4 -3 -3 ------- Run | Yrd Mat Min Exi Min Mat Fac DSF Fac Fac Fac DSF Res Tes Robot Analysis Total 2 | . 1 . . . 1 . . . . . . . . Derelict Logs Recovered . | . . . . . . . . . . . . . . Drone Launches . | . . . . . . . . . . . . . . Drone Recoveries . | . . . . . . . . . . . . . . Exploration | -11 -10 -10 -10 -9 -8 -7 -7 -6 -5 -4 -4 -3 -3 ------------- Run | Yrd Mat Min Exi Min Mat Fac DSF Fac Fac Fac DSF Res Tes Turns Passed 2528 | 54 986 74 240 56 242 91 110 224 128 6 42 237 38 Spaces Moved 2586 | 37 519 60 209 49 163 80 111 489 315 12 84 399 59 Core 704 | . . . . . . . 63 10 77 12 84 399 59 Treads . | . . . . . . . . . . . . . . Legs . | . . . . . . . . . . . . . . Wheels 1165 | 37 519 60 209 49 163 80 48 . . . . . . Hover . | . . . . . . . . . . . . . . Flight 717 | . . . . . . . . 479 238 . . . . Fastest Speed 35 | 100 100 115 115 115 115 115 50 35 35 50 50 50 50 Average Speed 74 | 100 111 115 115 115 115 115 81 35 38 50 50 50 50 Slowest Speed 250 | 100 115 115 115 115 115 115 250 100 50 50 50 50 50 Overloaded Moves . | . . . . . . . . . . . . . . Propulsion Burnouts . | . . . . . . . . . . . . . . Robots Hopped 18 | . . . . . . . . 10 8 . . . . Cave-ins Triggered . | . . . . . . . . . . . . . . Exploration Rate (%) 32 | 3 78 22 61 21 23 4 91 21 17 1 86 17 15 Regions Visited 13 Branch Regions 4 Pre-discovered Areas 1 | . . . . 1 . . . . . . . . . Known Exits Taken 4 | . . 1 . 1 . 1 . . . 1 . . . Unknown Exits Taken 7 | 1 1 . 1 . 1 . . 1 1 . . 1 . Scrap Searched . | . . . . . . . . . . . . . . Spaces Dug . | . . . . . . . . . . . . . . Terrain Destroyed 90 | . 2 . . . 43 . . 45 . . . . . Melee . | . . . . . . . . . . . . . . Projectile 5 | . 2 . . . 3 . . . . . . . . AOE 85 | . . . . . 40 . . 45 . . . . . Terrain Rammed . | . . . . . . . . . . . . . . Walls Destroyed . | . . . . . . . . . . . . . . Machines Disabled . | . . . . . . . . . . . . . . Actions | -11 -10 -10 -10 -9 -8 -7 -7 -6 -5 -4 -4 -3 -3 --------- Run | Yrd Mat Min Exi Min Mat Fac DSF Fac Fac Fac DSF Res Tes Total 3071 | 45 864 61 208 48 202 79 128 527 313 11 83 435 67 Wait 387 | . 309 . . . 25 . 8 20 5 . . 15 5 Move 2540 | 37 518 59 208 48 162 79 110 469 299 11 83 398 59 Hop 16 | . . . . . . . . 9 7 . . . . Pick Up 1 | . . . . . 1 . . . . . . . . Fast Attach . | . . . . . . . . . . . . . . Attach 10 | . 1 . . . 3 . . 5 . . . . 1 Detach 7 | 1 1 . . . . . . 3 2 . . . . Swap 2 | . 1 . . . 1 . . . . . . . . Drop 3 | . . . . . 2 . . . . . . . 1 Fire 56 | 7 34 2 . . 8 . 1 3 . . . . 1 Melee . | . . . . . . . . . . . . . . Ram 7 | . . . . . . . . . . . . 7 . Kick . | . . . . . . . . . . . . . . Crush . | . . . . . . . . . . . . . . Escape Stasis 41 | . . . . . . . 8 18 . . . 15 . Rewire 1 | . . . . . . . 1 . . . . . . Trap . | . . . . . . . . . . . . . . Miscellaneous . | . . . . . . . . . . . . . . Route ------- -11/Scrapyard -10/Materials (discovered 5 exits: *Mat x3 / [*Min] / Sub) -10/Mines (discovered 4 exits: Mat x2 / *Exi / Sub) -10/Exiles -9/Mines (discovered 2 exits: *Mat x2) -8/Materials -7/Factory -7/DSF -6/Factory -5/Factory -4/Factory -4/DSF -3/Research (discovered 2 exits: [*Arm] / [*Tes]) -3/Testing History --------- Turn | Location | Event 5 | -11/Scrapyard | Discovered new exit (range 15) 55 | -11/Scrapyard | Entered Materials 304 | -10/Materials | Build established: Mutant 343 | -10/Materials | Discovered new exit (range 3) 467 | -10/Materials | Discovered new exit (range 8) 556 | -10/Materials | Discovered new exit (range 3) 560 | -10/Materials | Learned Storage interactive machine intel 684 | -10/Materials | Discovered new exit (range 3) 694 | -10/Materials | Learned location of 1 exit from Storage 745 | -10/Materials | Identified exit to Subcaves 786 | -10/Materials | Learned Storage stockpile data 872 | -10/Materials | Learned location of 2 exits from Mines 972 | -10/Materials | Learned 4 Subcaves zone layouts 1037 | -10/Materials | Loaded intel: 19 trap records 1041 | -10/Materials | Entered Mines 1042 | -10/Mines | Assembled infested the area 1042 | -10/Mines | Identified exit to Materials 1043 | -10/Mines | Identified exit to Exiles 1115 | -10/Mines | Entered Exiles 1143 | -10/Exiles | Met 8R-AWN 1164 | -10/Exiles | Met EX-HEX 1198 | -10/Exiles | Met EX-BIN 1214 | -10/Exiles | Aligned with FarCom system 1216 | -10/Exiles | Given EX-Vault access code 1242 | -10/Exiles | Opened EX-Vault 1270 | -10/Exiles | Warned to stay clear of 0b10 Research branches 1302 | -10/Exiles | Met EX-DEC 1343 | -10/Exiles | Discovered new exit (range 12) 1355 | -10/Exiles | Entered Mines 1356 | -9/Mines | Learned location of Storage (-7) 1356 | -9/Mines | Identified exit to Materials 1411 | -9/Mines | Entered Materials 1411 | -8/Materials | Evolved 4 slots: Utility x4 1650 | -8/Materials | Discovered new exit (range 4) 1653 | -8/Materials | Entered Factory 1653 | -7/Factory | Evolved 2 slots: Utility x2 1744 | -7/Factory | Identified exit to DSF 1744 | -7/Factory | Entered DSF 1793 | -7/DSF | Additional patrols routed to DSF 1847 | -7/DSF | Discovered new exit (range 16) 1854 | -7/DSF | Entered Factory 1854 | -6/Factory | Evolved 2 slots: Utility x2 1856 | -6/Factory | Lost 4 parts (1n1u2w) 1874 | -6/Factory | Spotted B-75 Beast 1984 | -6/Factory | Lost 3 parts (2u1w) 2073 | -6/Factory | Discovered new exit (range 15) 2078 | -6/Factory | Entered another Factory area 2078 | -5/Factory | Evolved 2 slots: Utility x2 2157 | -5/Factory | Allied Derelicts emerged from ambush trap array 2198 | -5/Factory | Core integrity fell below 50% 2200 | -5/Factory | Discovered new exit (range 13) 2206 | -5/Factory | Entered another Factory area 2206 | -4/Factory | Evolved 2 slots: Utility x2 2212 | -4/Factory | Identified exit to DSF 2212 | -4/Factory | Entered DSF 2240 | -4/DSF | Additional patrols routed to DSF 2248 | -4/DSF | Discovered new exit (range 11) 2254 | -4/DSF | Entered Research 2254 | -3/Research | Evolved 2 slots: Utility x2 2358 | -3/Research | Spotted B-86 Titan 2399 | -3/Research | Core integrity fell below 50% 2483 | -3/Research | Discovered new exit (range 15) 2489 | -3/Research | Discovered new exit (range 15) 2491 | -3/Research | Entered Testing 2492 | -3/Testing | Maximum security lockdown engaged 2509 | -3/Testing | Core integrity fell below 20% 2529 | -3/Testing | Destroyed by G-67 Veteran with Plasma Rifle Last Messages --------------- 02466_ Field strength at 34. 02467_ Field strength at 28. 02468_ Field strength at 22. 02469_ Field strength at 16. 02470_ Field strength at 10. 02471_ Field strength at 4. 02472_ Stasis field depleted. 02483_ EXIT=FOUND LOCATION=UNKNOWN GOAL=ESCAPE 02491_ Receiving FarCom transmissions... 02492_ ALERT: Suspected Assembled signals penetrating research branch. 02492_ ALERT: Maximum security lockdown engaged. 02493_ ALERT: Machine network offline. 02494_ ALERT: Performing unscheduled system reset. 02495_ ALERT: Lockdown in effect, collecting threat data. 02496_ FARCOM_MSG: For science! 02528_ Dropped Welding Torch. Map ----- +----------------------------------------------------+ | | | | | | | | | ?????????????????????????????????????????????????? | | ???#?????????????????????????????????????????????? | | ???# ? ?????????????????????????????????????????? | | ???# ?????????????????????????????????????????? | | ???? ???????????????????????????????????????? | | ???? ?????####???###??????????????????????? | | ????? ?? # """"" #??????????????????????? | | ?????? # """"" #??????????????????????? | | ?????? # """"" #??????????????????????? | | ??????? # #??????????????????????? | | ???????" """ # ???????????????????????? | | ???????" """" # ?????????????????????????? | | ???????" """ ?# ???????????????????????????? | | ???????? ???# ?????????????????????????????? | | ????######+######+####+####??????????????????????? | | ????# #??????????????????????? | | ????# #??????????????????????? | | ????# ########???????????????? | | ????# # ???????????????? | | ????####+############# # """ ""???????????????? | | ?????????????????????# # """ """??????????????? | | ????????????????#?#### @# """ """ #????????????? | | ??????????????? ? # +| #????????????? | | ?????????????? ? # # #???g????????? | | ?????????????# # # #???g????????? | | ?????????????# # # #???g????????? | | ?????????????# """ # ###########????????????? | | ?????????????# """ # #??????????????????????? | | ?????????????# """ # ########???????????????? | | ?????????????# " #g ???????????? | | ?????????????# /g ???????????? | | ?????????????# """ #g ???????????? | | ?????????????# ???" # ???????????? | | ?????????????# """ # gg ##########+????????????? | | ?????????????# # ####???????????????????? | | ?????????????# # #???????????????????? | | ?????????????# # #???????????????????? | | ?????????????# + #???????????????????? | | ?????????????# # ####???????????????????? | | ?????????????######### #??????????????????????? | | ????????????????#######+#+######?????????????????? | | ???????????????# #?????????????????? | | ???????????????# """""" """""" #?????????????????? | | ?????????????????"""""" """""" #?????????????????? | | ?????????????????"""""" """""" ??????????????????? | | ?????????????????? ???????????????????? | +----------------------------------------------------+ Best States ------------- Heat Dissipation 57 Energy Generation 14 Energy Capacity 265 Matter Stores 300 Matter Capacity 300 Sight Range 16 Terrain Scan Density 10 Armor Coverage 150 Evasion (%) 63 Salvage Targeting 2 Item Schematics ----------------- None Robot Schematics ------------------ None Fabricated ------------ Nothing Alien Tech Used ----------------- None Achievements -------------- None Challenges ------------ None Cogshop Purchases (20) ------------------------ Imp. Assault Rifle (Loot Box) Welding Torch (Loot Box) Imp. Hover Unit (Loot Box) Med. Matter Pod (Loot Box) Lgt. Nuclear Core (Loot Box) Com. Wheel (Loot Box) Heat Sink (Loot Box) Hrd. Light Armor Plating (Loot Box) Lgt. EM Pulse Cannon (Loot Box) Imp. Cesium-ion Thruster (Loot Box) Heat Sink (Loot Box) Plasma Cannon (Loot Box) Imp. Salvage Targeting Computer (Loot Box) Beam Cannon (646) Imp. EM Pulse Cannon (Loot Box) Imp. Ion Engine (Loot Box) Cld. Pulse Rifle (Loot Box) Graphene Brace (Loot Box) Adv. Matter Compressor (Loot Box) Particle Accelerator (Loot Box) Game ------ Seed SupersonicUltimatePenetrator Manual? 0 Play Time 00:20:27 Cumulative 51.0 hours Start 2024.10.06 @ 02:00:30 End 2024.10.06 @ 02:20:12 Sessions 1 Manual Loads 0 Difficulty Rogue Special Mode AFD2019/Pay2Buy Game No. 64 Rogue 64 Adventurer 0 Explorer 0 Win Type - Total 1 Types 1/0/0/0/0/0/0/0/0 Lore% 36 Gallery% 49 Achievement% 51 Wizard Run 0 Options --------- Layout 1 ASCII 0 Keyboard 0 Movement Numpad Keybinds 0 Fullscreen 1 Font 20/SmallcapsGlow Map View 54x42 Zoom Use 0% Tactical HUD 1 Map Filters NONE Filters NONE Steam 1 RUN: f5488898-8f0d-4f7c-a13c-bbbe322b072e